[Event "*** Titled Tuesday Blitz"]
[Site "Chess.com"]
[Date "2020.10.27"]
[Round "5"]
[White "TheMagnet"]
[Black "KacperPolOK"]
[Result "0-1"]
[WhiteElo "2565"]
[BlackElo "2415"]
[TimeControl "180+1"]
[EndTime "10:56:04 PDT"]
[Termination "KacperPolOK won by resignation"]

1. d4 {[%clk 0:02:58.5]} 1... e6 {[%clk 0:02:58.7]} 2. c4 {[%clk 0:02:58.7]}
2... f5 {[%clk 0:02:58.6]} 3. g3 {[%clk 0:02:58.7]} 3... Nf6 {[%clk 0:02:58.6]}
4. Bg2 {[%clk 0:02:58.9]} 4... d5 {[%clk 0:02:59.2]} 5. Qc2 {[%clk 0:02:52]}
5... c6 {[%clk 0:02:58.4]} 6. Nh3 {[%clk 0:02:51]} 6... Bd6 {[%clk 0:02:55.2]}
7. O-O {[%clk 0:02:51.2]} 7... O-O {[%clk 0:02:54.2]} 8. Bf4 {[%clk 0:02:51.7]}
8... Be7 {[%clk 0:02:54.1]} 9. Bxb8 {[%clk 0:02:46.3]} 9... Rxb8 {[%clk
0:02:53.9]} 10. Nf4 {[%clk 0:02:46.8]} 10... Bd7 {[%clk 0:02:44.1]} 11. Nd2
{[%clk 0:02:46.6]} 11... Ne4 {[%clk 0:02:42]} 12. Nf3 {[%clk 0:02:43.5]} 12...
Bf6 {[%clk 0:02:40.4]} 13. Nd3 {[%clk 0:02:38.1]} 13... Qe7 {[%clk 0:02:37.8]}
14. Nfe5 {[%clk 0:02:35.2]} 14... Rfc8 {[%clk 0:02:37]} 15. f3 {[%clk 0:02:33]}
15... Nd6 {[%clk 0:02:37.2]} 16. c5 {[%clk 0:02:32.8]} 16... Nf7 {[%clk
0:02:37.5]} 17. b4 {[%clk 0:02:28.9]} 17... b6 {[%clk 0:02:36]} 18. Rac1 {[%clk
0:02:18.9]} 18... Bxe5 {[%clk 0:02:24.5]} 19. dxe5 {[%clk 0:02:14.9]} 19... b5
{[%clk 0:02:18.1]} 20. Qc3 {[%clk 0:02:12.5]} 20... g5 {[%clk 0:02:08.7]} 21.
Qd4 {[%clk 0:02:07.7]} 21... Ra8 {[%clk 0:02:07.2]} 22. e4 {[%clk 0:02:06.3]}
22... a5 {[%clk 0:02:04.1]} 23. a3 {[%clk 0:02:04.1]} 23... Qf8 {[%clk
0:01:52.8]} 24. Rce1 {[%clk 0:01:59.5]} 24... Re8 {[%clk 0:01:42.9]} 25. h4
{[%clk 0:01:41.4]} 25... Qg7 {[%clk 0:01:33.4]} 26. exf5 {[%clk 0:01:35.8]}
26... exf5 {[%clk 0:01:33.3]} 27. hxg5 {[%clk 0:01:33.5]} 27... Nxg5 {[%clk
0:01:33.1]} 28. Nf4 {[%clk 0:01:28.5]} 28... Be6 {[%clk 0:01:33.4]} 29. Kf2
{[%clk 0:01:26.6]} 29... axb4 {[%clk 0:01:24.9]} 30. axb4 {[%clk 0:01:27.5]}
30... Ra2+ {[%clk 0:01:24.6]} 31. Re2 {[%clk 0:01:27.6]} 31... Rea8 {[%clk
0:01:25.2]} 32. Re1 {[%clk 0:01:22.8]} 32... Kf7 {[%clk 0:01:10.8]} 33. Nh5
{[%clk 0:01:19.2]} 33... Qh8 {[%clk 0:01:08.2]} 34. Nf6 {[%clk 0:01:18.8]} 34...
h6 {[%clk 0:01:06]} 35. Qh4 {[%clk 0:01:17.4]} 35... Qg7 {[%clk 0:01:03.8]} 36.
Rxa2 {[%clk 0:01:08.8]} 36... Rxa2+ {[%clk 0:01:03.5]} 37. Re2 {[%clk
0:01:08.8]} 37... Ra4 {[%clk 0:01:04.1]} 38. Rb2 {[%clk 0:01:06.9]} 38... Qg6
{[%clk 0:01:00.6]} 39. f4 {[%clk 0:01:05.1]} 39... Ne4+ {[%clk 0:01:00.2]} 40.
Bxe4 {[%clk 0:01:05.3]} 40... fxe4 {[%clk 0:00:58.4]} 41. g4 {[%clk 0:00:59.1]}
41... e3+ {[%clk 0:00:58.6]} 42. Kg3 {[%clk 0:00:55]} 42... e2 {[%clk
0:00:54.7]} 43. Rxe2 {[%clk 0:00:52.2]} 43... Ra3+ {[%clk 0:00:54.6]} 44. Kf2
{[%clk 0:00:51.6]} 44... Qd3 {[%clk 0:00:47.3]} 45. Qh5+ {[%clk 0:00:44]} 45...
Kg7 {[%clk 0:00:47.6]} 46. Ne8+ {[%clk 0:00:40.9]} 46... Kh7 {[%clk 0:00:45.6]}
47. Nf6+ {[%clk 0:00:36.5]} 47... Kg7 {[%clk 0:00:45.8]} 48. Ne8+ {[%clk
0:00:35]} 48... Kf8 {[%clk 0:00:46.3]} 49. Qxh6+ {[%clk 0:00:35.1]} 49... Ke7
{[%clk 0:00:38.3]} 50. f5 {[%clk 0:00:17.3]} 50... Qg3+ {[%clk 0:00:35.1]} 51.
Kf1 {[%clk 0:00:16.5]} 51... Ra1+ {[%clk 0:00:34.6]} 0-1

[Event "*** Titled Tuesday Blitz"]
[Site "Chess.com"]
[Date "2020.10.27"]
[Round "5"]
[White "pedromartinez91"]
[Black "Sergey85Rodchenkov"]
[Result "1-0"]
[WhiteElo "2626"]
[BlackElo "2450"]
[TimeControl "180+1"]
[EndTime "10:56:05 PDT"]
[Termination "pedromartinez91 won by resignation"]

1. b3 {[%clk 0:03:00.9]} 1... c5 {[%clk 0:02:58.7]} 2. Bb2 {[%clk 0:03:00.2]}
2... d5 {[%clk 0:02:58.7]} 3. e3 {[%clk 0:03:00.6]} 3... Nf6 {[%clk 0:02:58.3]}
4. Nf3 {[%clk 0:02:59.3]} 4... g6 {[%clk 0:02:58.2]} 5. Be2 {[%clk 0:02:48.9]}
5... Bg7 {[%clk 0:02:58]} 6. O-O {[%clk 0:02:49.8]} 6... O-O {[%clk 0:02:57.5]}
7. Na3 {[%clk 0:02:43.2]} 7... Nc6 {[%clk 0:02:57.1]} 8. Ne5 {[%clk 0:02:38.4]}
8... Nxe5 {[%clk 0:02:46.8]} 9. Bxe5 {[%clk 0:02:39.3]} 9... b6 {[%clk
0:02:43.9]} 10. c3 {[%clk 0:02:22.6]} 10... Bb7 {[%clk 0:02:42.6]} 11. Rc1
{[%clk 0:02:18.5]} 11... a5 {[%clk 0:02:40.8]} 12. Bb5 {[%clk 0:02:13.5]} 12...
Ne4 {[%clk 0:02:37.1]} 13. Bxg7 {[%clk 0:02:11.6]} 13... Kxg7 {[%clk 0:02:37.3]}
14. d4 {[%clk 0:02:02.1]} 14... Rc8 {[%clk 0:02:33.5]} 15. Bd3 {[%clk
0:02:01.1]} 15... Nd6 {[%clk 0:02:29.6]} 16. Nb5 {[%clk 0:01:56.4]} 16... Bc6
{[%clk 0:02:10.7]} 17. Nxd6 {[%clk 0:01:54.3]} 17... Qxd6 {[%clk 0:02:08.4]} 18.
Qd2 {[%clk 0:01:54.8]} 18... e5 {[%clk 0:02:04.2]} 19. Rfd1 {[%clk 0:01:53.7]}
19... Rcd8 {[%clk 0:01:58.6]} 20. Bf1 {[%clk 0:01:53]} 20... Rfe8 {[%clk
0:01:50.7]} 21. h3 {[%clk 0:01:52.3]} 21... Qe7 {[%clk 0:01:47.4]} 22. Qb2
{[%clk 0:01:47.1]} 22... Kg8 {[%clk 0:01:43.2]} 23. a3 {[%clk 0:01:44.4]} 23...
e4 {[%clk 0:01:31.6]} 24. c4 {[%clk 0:01:29.9]} 24... dxc4 {[%clk 0:01:19.6]}
25. Bxc4 {[%clk 0:01:30.8]} 25... cxd4 {[%clk 0:01:15.5]} 26. Rxd4 {[%clk
0:01:31.7]} 26... Rxd4 {[%clk 0:01:14.2]} 27. Qxd4 {[%clk 0:01:32.6]} 27... Qxa3
{[%clk 0:01:08.1]} 28. Bxf7+ {[%clk 0:01:28]} 28... Kxf7 {[%clk 0:01:07.2]} 29.
Rxc6 {[%clk 0:01:28.9]} 29... Re7 {[%clk 0:00:27]} 30. Rxb6 {[%clk 0:01:21.8]}
30... Qc1+ {[%clk 0:00:25.2]} 31. Kh2 {[%clk 0:01:21.8]} 31... Qc7+ {[%clk
0:00:25.1]} 32. Qd6 {[%clk 0:01:09]} 32... Qxd6+ {[%clk 0:00:23]} 33. Rxd6
{[%clk 0:01:09.9]} 33... Rb7 {[%clk 0:00:23.2]} 34. Rd5 {[%clk 0:01:09.5]} 34...
Rxb3 {[%clk 0:00:22.2]} 35. Rxa5 {[%clk 0:01:10]} 35... Kf6 {[%clk 0:00:21.1]}
36. h4 {[%clk 0:01:09.4]} 36... h5 {[%clk 0:00:20.3]} 37. Kg3 {[%clk 0:01:09.6]}
37... Rb2 {[%clk 0:00:19.5]} 38. Ra8 {[%clk 0:01:06.5]} 38... Kf5 {[%clk
0:00:19.2]} 39. Rf8+ {[%clk 0:01:06.7]} 39... Ke5 {[%clk 0:00:19.5]} 40. Re8+
{[%clk 0:01:05.4]} 40... Kf5 {[%clk 0:00:19.4]} 41. Ra8 {[%clk 0:01:05.3]} 41...
Rc2 {[%clk 0:00:18.8]} 42. Ra5+ {[%clk 0:01:05.5]} 42... Kf6 {[%clk 0:00:19]}
43. Rd5 {[%clk 0:01:05.9]} 43... Rb2 {[%clk 0:00:18.5]} 44. f3 {[%clk
0:01:02.5]} 44... exf3 {[%clk 0:00:18.2]} 45. gxf3 {[%clk 0:01:03.4]} 45... Ra2
{[%clk 0:00:18]} 46. e4 {[%clk 0:01:03.7]} 46... Ra1 {[%clk 0:00:18.3]} 47. Kf4
{[%clk 0:01:03.4]} 47... Rh1 {[%clk 0:00:17.6]} 48. Rd6+ {[%clk 0:01:03.3]}
48... Kf7 {[%clk 0:00:18]} 49. Ke5 {[%clk 0:00:54.5]} 49... Rxh4 {[%clk
0:00:17.3]} 50. Rd7+ {[%clk 0:00:55]} 50... Ke8 {[%clk 0:00:16.9]} 51. Rg7
{[%clk 0:00:54.9]} 51... Rh3 {[%clk 0:00:15.9]} 52. f4 {[%clk 0:00:55]} 52...
Rg3 {[%clk 0:00:16]} 53. f5 {[%clk 0:00:53.9]} 53... h4 {[%clk 0:00:16]} 54. f6
{[%clk 0:00:54]} 54... h3 {[%clk 0:00:15.2]} 55. Ke6 {[%clk 0:00:54.3]} 55...
Kd8 {[%clk 0:00:15]} 56. f7 {[%clk 0:00:52.2]} 56... Rf3 {[%clk 0:00:15]} 57.
Rg8+ {[%clk 0:00:51.1]} 1-0

[Event "*** Titled Tuesday Blitz"]
[Site "Chess.com"]
[Date "2020.10.27"]
[Round "5"]
[White "Sankalp_Gupta2003"]
[Black "dropstoneDP"]
[Result "0-1"]
[WhiteElo "2705"]
[BlackElo "2961"]
[TimeControl "180+1"]
[EndTime "10:56:10 PDT"]
[Termination "dropstoneDP won by resignation"]

1. e4 {[%clk 0:03:00.9]} 1... c5 {[%clk 0:02:58.5]} 2. Nf3 {[%clk 0:02:58.3]}
2... e6 {[%clk 0:02:57.4]} 3. d4 {[%clk 0:02:55.8]} 3... cxd4 {[%clk 0:02:58.3]}
4. Nxd4 {[%clk 0:02:56.7]} 4... Be7 {[%clk 0:02:58.4]} 5. Bd3 {[%clk 0:02:52.6]}
5... Nc6 {[%clk 0:02:57.1]} 6. Nxc6 {[%clk 0:02:49.9]} 6... bxc6 {[%clk
0:02:56.2]} 7. c4 {[%clk 0:02:42.4]} 7... Nf6 {[%clk 0:02:54.8]} 8. O-O {[%clk
0:02:38.8]} 8... d5 {[%clk 0:02:53.3]} 9. Nc3 {[%clk 0:02:34.4]} 9... O-O {[%clk
0:02:46]} 10. Bg5 {[%clk 0:02:20.4]} 10... d4 {[%clk 0:02:42.8]} 11. Na4 {[%clk
0:02:20.6]} 11... Nd7 {[%clk 0:02:38.5]} 12. Bxe7 {[%clk 0:02:18.8]} 12... Qxe7
{[%clk 0:02:39.4]} 13. f4 {[%clk 0:02:18.8]} 13... e5 {[%clk 0:02:33.1]} 14. f5
{[%clk 0:02:13.7]} 14... c5 {[%clk 0:02:30.7]} 15. Qd2 {[%clk 0:02:08.3]} 15...
Bb7 {[%clk 0:02:30.5]} 16. b3 {[%clk 0:02:05.5]} 16... Bc6 {[%clk 0:02:24.7]}
17. Nb2 {[%clk 0:02:03]} 17... Qh4 {[%clk 0:02:25.4]} 18. Rae1 {[%clk
0:02:01.9]} 18... Nf6 {[%clk 0:02:24.9]} 19. Qe2 {[%clk 0:01:56.7]} 19... a5
{[%clk 0:02:15.9]} 20. g3 {[%clk 0:01:53.1]} 20... Qh3 {[%clk 0:01:59.7]} 21.
Bc2 {[%clk 0:01:53]} 21... Ng4 {[%clk 0:01:07.3]} 22. Nd3 {[%clk 0:01:47.9]}
22... Bxe4 {[%clk 0:00:51.9]} 23. f6 {[%clk 0:01:39.7]} 23... Ne3 {[%clk
0:00:39.1]} 24. fxg7 {[%clk 0:01:16.8]} 24... Kxg7 {[%clk 0:00:38.7]} 25. Rf2
{[%clk 0:01:17.3]} 25... f5 {[%clk 0:00:35.3]} 26. Bb1 {[%clk 0:01:17.2]} 26...
Ng4 {[%clk 0:00:28.3]} 27. Rff1 {[%clk 0:01:12.5]} 27... Bxd3 {[%clk 0:00:24.8]}
28. Bxd3 {[%clk 0:01:13.4]} 28... e4 {[%clk 0:00:25.2]} 29. Bb1 {[%clk
0:01:12.9]} 29... d3 {[%clk 0:00:20.1]} 30. Qg2 {[%clk 0:01:13.1]} 30... Qxg2+
{[%clk 0:00:19.6]} 31. Kxg2 {[%clk 0:01:14]} 31... a4 {[%clk 0:00:19.9]} 32. h3
{[%clk 0:01:13.2]} 32... Ne5 {[%clk 0:00:19.6]} 33. g4 {[%clk 0:01:09.6]} 33...
Nf3 {[%clk 0:00:20.2]} 34. Re3 {[%clk 0:01:09.5]} 34... Nd2 {[%clk 0:00:19.6]}
35. Rd1 {[%clk 0:01:01.3]} 35... f4 {[%clk 0:00:19.4]} 36. Rxd3 {[%clk
0:01:01.6]} 36... exd3 {[%clk 0:00:16.6]} 37. Rxd2 {[%clk 0:01:02]} 37... axb3
{[%clk 0:00:17]} 38. axb3 {[%clk 0:01:02.9]} 38... Ra1 {[%clk 0:00:17.2]} 39.
Bxd3 {[%clk 0:01:01.6]} 39... Rd8 {[%clk 0:00:17.9]} 40. Kf3 {[%clk 0:00:55.1]}
40... Rd4 {[%clk 0:00:18.4]} 41. Ke2 {[%clk 0:00:52.2]} 41... Rh1 {[%clk
0:00:17.4]} 42. Rc2 {[%clk 0:00:43.1]} 42... Rh2+ {[%clk 0:00:16.6]} 43. Ke1
{[%clk 0:00:42.8]} 43... Rh1+ {[%clk 0:00:16.3]} 44. Ke2 {[%clk 0:00:40.8]}
44... f3+ {[%clk 0:00:16.4]} 45. Ke3 {[%clk 0:00:40.8]} 45... f2 {[%clk
0:00:12.4]} 46. b4 {[%clk 0:00:28.9]} 46... Rxd3+ {[%clk 0:00:10.9]} 0-1

[Event "*** Titled Tuesday Blitz"]
[Site "Chess.com"]
[Date "2020.10.27"]
[Round "5"]
[White "queen_iryna"]
[Black "teacher4chess"]
[Result "0-1"]
[WhiteElo "2288"]
[BlackElo "2071"]
[TimeControl "180+1"]
[EndTime "10:56:11 PDT"]
[Termination "teacher4chess won by checkmate"]

1. e4 {[%clk 0:02:59.9]} 1... Nf6 {[%clk 0:02:58.7]} 2. d3 {[%clk 0:02:57.6]}
2... d5 {[%clk 0:02:57.4]} 3. e5 {[%clk 0:02:56.7]} 3... Nfd7 {[%clk 0:02:57]}
4. Nf3 {[%clk 0:02:56.4]} 4... c5 {[%clk 0:02:54.3]} 5. Be2 {[%clk 0:02:55.7]}
5... e6 {[%clk 0:02:42.9]} 6. O-O {[%clk 0:02:55.3]} 6... Nc6 {[%clk 0:02:42.9]}
7. Bf4 {[%clk 0:02:54.5]} 7... Qb6 {[%clk 0:02:35.1]} 8. Nbd2 {[%clk 0:02:29.2]}
8... Qxb2 {[%clk 0:02:17.7]} 9. c4 {[%clk 0:02:16.1]} 9... Nd4 {[%clk
0:02:05.7]} 10. Nxd4 {[%clk 0:02:14.1]} 10... Qxd4 {[%clk 0:01:23.8]} 11. Bg3
{[%clk 0:02:08.9]} 11... dxc4 {[%clk 0:01:22.5]} 12. Nxc4 {[%clk 0:02:07.5]}
12... Be7 {[%clk 0:01:08]} 13. Bf3 {[%clk 0:01:59.1]} 13... O-O {[%clk 0:01:07]}
14. Rb1 {[%clk 0:01:57.7]} 14... Nb6 {[%clk 0:00:55.5]} 15. Nxb6 {[%clk
0:01:50.1]} 15... axb6 {[%clk 0:00:55.4]} 16. Rxb6 {[%clk 0:01:39.7]} 16... Rxa2
{[%clk 0:00:55.3]} 17. Qb3 {[%clk 0:01:27.9]} 17... Ra7 {[%clk 0:00:48]} 18.
Bxb7 {[%clk 0:01:25.8]} 18... Bxb7 {[%clk 0:00:41.9]} 19. Rxb7 {[%clk
0:01:26.7]} 19... Rxb7 {[%clk 0:00:40.8]} 20. Qxb7 {[%clk 0:01:27.3]} 20... Bg5
{[%clk 0:00:35.5]} 21. Qc6 {[%clk 0:01:09]} 21... Qxd3 {[%clk 0:00:30.1]} 22.
Qxc5 {[%clk 0:01:08.1]} 22... Qf5 {[%clk 0:00:28.4]} 23. f4 {[%clk 0:01:05]}
23... Bh6 {[%clk 0:00:28.4]} 24. Be1 {[%clk 0:00:49.1]} 24... g5 {[%clk
0:00:24.7]} 25. fxg5 {[%clk 0:00:40]} 25... Qxg5 {[%clk 0:00:24.7]} 26. Kh1
{[%clk 0:00:25.1]} 26... Qe3 {[%clk 0:00:19.3]} 27. Qb5 {[%clk 0:00:17.5]} 27...
Bf4 {[%clk 0:00:16.9]} 28. Bb4 {[%clk 0:00:13.7]} 28... Rd8 {[%clk 0:00:09.1]}
29. Qb7 {[%clk 0:00:13.2]} 29... Qe2 {[%clk 0:00:05.2]} 30. Re1 {[%clk
0:00:11.1]} 30... Rd1 {[%clk 0:00:04.8]} 31. Qa8+ {[%clk 0:00:09.2]} 31... Kg7
{[%clk 0:00:04.9]} 32. g3 {[%clk 0:00:04.4]} 32... Rxe1+ {[%clk 0:00:04.8]} 33.
Bxe1 {[%clk 0:00:05.3]} 33... Qf1# {[%clk 0:00:04.3]} 0-1

[Event "*** Titled Tuesday Blitz"]
[Site "Chess.com"]
[Date "2020.10.27"]
[Round "5"]
[White "SergeyKarjakin"]
[Black "Aleksey_Sorokin"]
[Result "1-0"]
[WhiteElo "3015"]
[BlackElo "2842"]
[TimeControl "180+1"]
[EndTime "10:56:12 PDT"]
[Termination "SergeyKarjakin won by resignation"]

1. d4 {[%clk 0:03:00.9]} 1... Nf6 {[%clk 0:02:59.8]} 2. Bg5 {[%clk 0:03:01.5]}
2... e6 {[%clk 0:02:56.3]} 3. Nd2 {[%clk 0:02:59.4]} 3... h6 {[%clk 0:02:54.9]}
4. Bh4 {[%clk 0:02:57.8]} 4... d5 {[%clk 0:02:52]} 5. e3 {[%clk 0:02:54.8]} 5...
c5 {[%clk 0:02:52]} 6. c3 {[%clk 0:02:54]} 6... Nc6 {[%clk 0:02:52.1]} 7. Ngf3
{[%clk 0:02:49.6]} 7... cxd4 {[%clk 0:02:46.1]} 8. exd4 {[%clk 0:02:48.7]} 8...
g5 {[%clk 0:02:45.5]} 9. Bg3 {[%clk 0:02:47.2]} 9... Nh5 {[%clk 0:02:45.3]} 10.
Be5 {[%clk 0:02:25.1]} 10... f6 {[%clk 0:02:42.2]} 11. Ng1 {[%clk 0:02:12.9]}
11... Ng7 {[%clk 0:02:17.1]} 12. Bg3 {[%clk 0:02:12.9]} 12... f5 {[%clk
0:02:01.4]} 13. f4 {[%clk 0:02:03.2]} 13... Bd6 {[%clk 0:01:58.6]} 14. Qf3
{[%clk 0:01:55.9]} 14... g4 {[%clk 0:01:53.9]} 15. Qf2 {[%clk 0:01:55.8]} 15...
Bd7 {[%clk 0:01:45.3]} 16. Bh4 {[%clk 0:01:47.2]} 16... Be7 {[%clk 0:01:42.3]}
17. Bxe7 {[%clk 0:01:46.5]} 17... Qxe7 {[%clk 0:01:43.2]} 18. Ne2 {[%clk
0:01:45.9]} 18... O-O-O {[%clk 0:01:41.8]} 19. Nc1 {[%clk 0:01:45.6]} 19... Ne8
{[%clk 0:01:39.9]} 20. Bb5 {[%clk 0:01:41.2]} 20... Ne5 {[%clk 0:01:19.4]} 21.
dxe5 {[%clk 0:01:37.2]} 21... Bxb5 {[%clk 0:01:19.2]} 22. Qxa7 {[%clk
0:01:31.3]} 22... d4 {[%clk 0:01:10.6]} 23. cxd4 {[%clk 0:01:19]} 23... Qh4+
{[%clk 0:01:10.5]} 24. g3 {[%clk 0:01:18.1]} 24... Qh3 {[%clk 0:01:10.4]} 25.
Ncb3 {[%clk 0:01:13.5]} 25... Qg2 {[%clk 0:00:53.4]} 26. O-O-O {[%clk
0:01:12.4]} 26... Nc7 {[%clk 0:00:43.7]} 27. Na5 {[%clk 0:01:02.6]} 27... Ba6
{[%clk 0:00:25.8]} 28. Kb1 {[%clk 0:00:49.6]} 28... Qd5 {[%clk 0:00:24]} 29.
Ndb3 {[%clk 0:00:42.7]} 29... Nb5 {[%clk 0:00:22.1]} 30. Qb6 {[%clk 0:00:39.3]}
30... Kb8 {[%clk 0:00:16.2]} 31. Nc5 {[%clk 0:00:36.7]} 31... Nc7 {[%clk
0:00:14.4]} 32. Rc1 {[%clk 0:00:24.7]} 32... Rc8 {[%clk 0:00:14.7]} 33. Rhd1
{[%clk 0:00:23.5]} 33... Ka8 {[%clk 0:00:14.7]} 34. Rc3 {[%clk 0:00:12.6]} 34...
h5 {[%clk 0:00:14.8]} 35. Ra3 {[%clk 0:00:11]} 35... Nb5 {[%clk 0:00:14]} 36.
Ra4 {[%clk 0:00:10]} 36... h4 {[%clk 0:00:11.3]} 37. Naxb7 {[%clk 0:00:08.8]}
1-0

[Event "*** Titled Tuesday Blitz"]
[Site "Chess.com"]
[Date "2020.10.27"]
[Round "5"]
[White "ChronicUnhappiness"]
[Black "Iskusnyh"]
[Result "0-1"]
[WhiteElo "2375"]
[BlackElo "2561"]
[TimeControl "180+1"]
[EndTime "10:56:12 PDT"]
[Termination "Iskusnyh won by resignation"]

1. c4 {[%clk 0:03:00.9]} 1... c5 {[%clk 0:02:58.7]} 2. Nf3 {[%clk 0:02:59.6]}
2... g6 {[%clk 0:02:58.7]} 3. Nc3 {[%clk 0:02:54]} 3... Bg7 {[%clk 0:02:57]} 4.
e3 {[%clk 0:02:52.3]} 4... Nf6 {[%clk 0:02:56.3]} 5. d4 {[%clk 0:02:51.7]} 5...
cxd4 {[%clk 0:02:52]} 6. Nxd4 {[%clk 0:02:29.8]} 6... O-O {[%clk 0:02:47.4]} 7.
Be2 {[%clk 0:02:29.7]} 7... Nc6 {[%clk 0:02:47.8]} 8. O-O {[%clk 0:02:29.2]}
8... d5 {[%clk 0:02:47.6]} 9. cxd5 {[%clk 0:02:08.2]} 9... Nxd5 {[%clk
0:02:46.1]} 10. Nxc6 {[%clk 0:02:06]} 10... bxc6 {[%clk 0:02:45.4]} 11. Bd2
{[%clk 0:01:44.3]} 11... Rb8 {[%clk 0:02:39.8]} 12. Nxd5 {[%clk 0:01:40.9]}
12... cxd5 {[%clk 0:02:35.5]} 13. Bc3 {[%clk 0:01:41.5]} 13... Bxc3 {[%clk
0:02:32.5]} 14. bxc3 {[%clk 0:01:41.2]} 14... Qa5 {[%clk 0:02:32.3]} 15. c4
{[%clk 0:01:37.3]} 15... Rd8 {[%clk 0:02:12.3]} 16. cxd5 {[%clk 0:01:36.7]}
16... Rxd5 {[%clk 0:02:11.7]} 17. Qc1 {[%clk 0:01:36.4]} 17... Be6 {[%clk
0:02:03.8]} 18. Rd1 {[%clk 0:01:28.7]} 18... Rxd1+ {[%clk 0:01:58.3]} 19. Qxd1
{[%clk 0:01:28.2]} 19... Rb2 {[%clk 0:01:56.2]} 20. a4 {[%clk 0:01:20.6]} 20...
Bb3 {[%clk 0:01:39.5]} 21. Qf1 {[%clk 0:01:12.1]} 21... Qb4 {[%clk 0:01:16.4]}
22. a5 {[%clk 0:01:08.1]} 22... Qd2 {[%clk 0:01:10.4]} 23. Bf3 {[%clk
0:00:51.8]} 23... h5 {[%clk 0:00:54.4]} 24. h3 {[%clk 0:00:51.6]} 24... Kg7
{[%clk 0:00:52.2]} 25. Qe1 {[%clk 0:00:44.5]} 25... Qxe1+ {[%clk 0:00:49.5]} 26.
Rxe1 {[%clk 0:00:43.8]} 26... Ra2 {[%clk 0:00:49.7]} 27. Rb1 {[%clk 0:00:40.8]}
27... Be6 {[%clk 0:00:43]} 28. Rb7 {[%clk 0:00:30.8]} 28... Rxa5 {[%clk
0:00:42.6]} 29. Rxe7 {[%clk 0:00:31]} 29... Ra1+ {[%clk 0:00:40.9]} 30. Kh2
{[%clk 0:00:30.6]} 30... a5 {[%clk 0:00:41.1]} 31. g4 {[%clk 0:00:25.5]} 31...
h4 {[%clk 0:00:38.7]} 32. Bc6 {[%clk 0:00:15.2]} 32... a4 {[%clk 0:00:37.8]} 33.
e4 {[%clk 0:00:13.6]} 33... a3 {[%clk 0:00:37]} 34. Bd5 {[%clk 0:00:11.5]} 34...
Bxd5 {[%clk 0:00:33.5]} 35. exd5 {[%clk 0:00:11.4]} 35... Rf1 {[%clk 0:00:33.1]}
36. Ra7 {[%clk 0:00:08.8]} 36... Rxf2+ {[%clk 0:00:32.6]} 37. Kg1 {[%clk
0:00:09]} 37... Rf3 {[%clk 0:00:32.5]} 38. Kg2 {[%clk 0:00:09.1]} 38... Rg3+
{[%clk 0:00:32.4]} 39. Kh2 {[%clk 0:00:09.2]} 39... Kf6 {[%clk 0:00:32.4]} 40.
d6 {[%clk 0:00:08.9]} 40... Ke6 {[%clk 0:00:32.5]} 41. d7 {[%clk 0:00:08.7]}
41... Ke7 {[%clk 0:00:32.6]} 42. Rb7 {[%clk 0:00:05.3]} 42... Rd3 {[%clk
0:00:30.7]} 43. Ra7 {[%clk 0:00:05.3]} 43... Rd2+ {[%clk 0:00:30.7]} 44. Kg1
{[%clk 0:00:05.1]} 44... a2 {[%clk 0:00:31.3]} 45. d8=Q+ {[%clk 0:00:03.7]}
45... Kxd8 {[%clk 0:00:30.3]} 46. Ra8+ {[%clk 0:00:04.3]} 46... Ke7 {[%clk
0:00:29.3]} 0-1

[Event "*** Titled Tuesday Blitz"]
[Site "Chess.com"]
[Date "2020.10.27"]
[Round "5"]
[White "gagtemp"]
[Black "Ural_bogatyr"]
[Result "0-1"]
[WhiteElo "1970"]
[BlackElo "2360"]
[TimeControl "180+1"]
[EndTime "10:56:14 PDT"]
[Termination "Ural_bogatyr won on time"]

1. e4 {[%clk 0:03:00.9]} 1... e5 {[%clk 0:02:52.9]} 2. Nf3 {[%clk 0:03:00.4]}
2... Nc6 {[%clk 0:02:46.4]} 3. Bc4 {[%clk 0:03:00.2]} 3... Nf6 {[%clk
0:02:46.6]} 4. d3 {[%clk 0:02:59.5]} 4... h6 {[%clk 0:02:46.5]} 5. O-O {[%clk
0:02:58.7]} 5... d6 {[%clk 0:02:45.5]} 6. a4 {[%clk 0:02:56.9]} 6... g5 {[%clk
0:02:45.8]} 7. c3 {[%clk 0:02:48.8]} 7... Bg7 {[%clk 0:02:45.5]} 8. d4 {[%clk
0:02:47]} 8... Bg4 {[%clk 0:02:39.9]} 9. dxe5 {[%clk 0:02:42.8]} 9... Bxf3
{[%clk 0:02:31.5]} 10. Qxf3 {[%clk 0:02:28.2]} 10... Nxe5 {[%clk 0:02:31.6]} 11.
Qe2 {[%clk 0:02:28.1]} 11... Nxc4 {[%clk 0:02:29.9]} 12. Qxc4 {[%clk 0:02:27.4]}
12... O-O {[%clk 0:02:29.5]} 13. Be3 {[%clk 0:02:21.4]} 13... Re8 {[%clk
0:02:20.9]} 14. Nd2 {[%clk 0:02:16]} 14... Nxe4 {[%clk 0:02:15.4]} 15. Nxe4
{[%clk 0:02:06.4]} 15... d5 {[%clk 0:02:11.2]} 16. Qb3 {[%clk 0:01:54.9]} 16...
dxe4 {[%clk 0:02:04]} 17. Qxb7 {[%clk 0:01:54.3]} 17... Qb8 {[%clk 0:02:01.8]}
18. Qd5 {[%clk 0:01:23]} 18... Qxb2 {[%clk 0:01:57.3]} 19. Bd4 {[%clk
0:01:21.6]} 19... Rad8 {[%clk 0:01:53.2]} 20. Qc5 {[%clk 0:01:13.5]} 20... Bxd4
{[%clk 0:01:52.4]} 21. cxd4 {[%clk 0:01:12.7]} 21... Qxd4 {[%clk 0:01:52.7]} 22.
Qxc7 {[%clk 0:01:12.1]} 22... Rc8 {[%clk 0:01:43.7]} 23. Qa5 {[%clk 0:01:08.6]}
23... Rc2 {[%clk 0:01:39.5]} 24. Rad1 {[%clk 0:01:04.7]} 24... Qf6 {[%clk
0:01:27.5]} 25. Qxa7 {[%clk 0:01:00]} 25... Qc6 {[%clk 0:01:15.5]} 26. Rd7
{[%clk 0:00:56.4]} 26... Ra8 {[%clk 0:01:03.7]} 27. Qd4 {[%clk 0:00:48.4]} 27...
Rc4 {[%clk 0:00:57.4]} 28. Qd6 {[%clk 0:00:40.1]} 28... Qxd6 {[%clk 0:00:56.7]}
29. Rxd6 {[%clk 0:00:40.2]} 29... Raxa4 {[%clk 0:00:56]} 30. Rxh6 {[%clk
0:00:39.9]} 30... Rc2 {[%clk 0:00:54]} 31. Rh3 {[%clk 0:00:29.8]} 31... Kg7
{[%clk 0:00:45.3]} 32. Re3 {[%clk 0:00:28.8]} 32... f5 {[%clk 0:00:44.1]} 33. g3
{[%clk 0:00:26.9]} 33... f4 {[%clk 0:00:41]} 34. gxf4 {[%clk 0:00:21.8]} 34...
gxf4 {[%clk 0:00:41.9]} 35. Ree1 {[%clk 0:00:20.3]} 35... Kf6 {[%clk 0:00:41.4]}
36. Kg2 {[%clk 0:00:19.8]} 36... Kf5 {[%clk 0:00:36.6]} 37. h3 {[%clk
0:00:18.5]} 37... Raa2 {[%clk 0:00:32.4]} 38. Kg1 {[%clk 0:00:17.6]} 38... e3
{[%clk 0:00:30.2]} 39. Rb1 {[%clk 0:00:08.1]} 39... Rxf2 {[%clk 0:00:28.9]} 40.
Rb5+ {[%clk 0:00:03.8]} 40... Ke4 {[%clk 0:00:25.7]} 41. Rb4+ {[%clk 0:00:03.3]}
41... Kf3 {[%clk 0:00:24.3]} 0-1